[Event "Titled Tuesday Blitz August 09 Late 2022"]
[White "Oparin, Grigoriy"]
[Black "Shuvalova, Polina"]
[WhiteFideId "24125890"]
[BlackFideId "24171760"]
[WhiteElo "2639"]
[BlackElo "2330"]
[Result "1/2-1/2"]
[Round "02"]
[TimeControl "180+1"]
[Date "2022.08.09"]
[WhiteClock "0:00:10"]
[BlackClock "0:00:04"]

1. d4 {[%clk 0:02:55]}  Nf6 {[%clk 0:02:59]} 2. c4 {[%clk 0:02:56]}  e6 {[%clk 0:02:59]} 3. Nf3 {[%clk 0:02:57]}  d5 {[%clk 0:03:00]} 4. g3 {[%clk 0:02:57]}  Bb4+ {[%clk 0:02:59]} 5. Bd2 {[%clk 0:02:57]}  Be7 {[%clk 0:02:59]} 6. Bg2 {[%clk 0:02:58]}  c6 {[%clk 0:03:00]} 7. O-O {[%clk 0:02:57]}  O-O {[%clk 0:02:59]} 8. Bc3 {[%clk 0:02:58]}  Nbd7 {[%clk 0:02:53]} 9. Nbd2 {[%clk 0:02:57]}  b5 {[%clk 0:02:51]} 10. cxb5 {[%clk 0:02:54]}  cxb5 {[%clk 0:02:51]} 11. b3 {[%clk 0:02:50]}  a5 {[%clk 0:02:48]} 12. Ne5 {[%clk 0:02:44]}  Bb7 {[%clk 0:02:33]} 13. Bb2 {[%clk 0:02:41]}  a4 {[%clk 0:02:27]} 14. bxa4 {[%clk 0:02:30]}  bxa4 {[%clk 0:02:26]} 15. Rb1 {[%clk 0:02:30]}  Nxe5 {[%clk 0:02:19]} 16. dxe5 {[%clk 0:02:30]}  Nd7 {[%clk 0:02:20]} 17. Bd4 {[%clk 0:02:23]}  Ba6 {[%clk 0:02:17]} 18. Nf3 {[%clk 0:02:13]}  Bc4 {[%clk 0:02:12]} 19. Qd2 {[%clk 0:02:14]}  Nc5 {[%clk 0:02:06]} 20. Bxc5 {[%clk 0:02:01]}  Bxc5 {[%clk 0:02:06]} 21. Rfc1 {[%clk 0:02:01]}  Qe7 {[%clk 0:02:04]} 22. e3 {[%clk 0:01:58]}  Rfb8 {[%clk 0:01:59]} 23. Bf1 {[%clk 0:01:57]}  Bb4 {[%clk 0:01:46]} 24. Qc2 {[%clk 0:01:57]}  Rc8 {[%clk 0:01:35]} 25. Bxc4 {[%clk 0:01:55]}  Rxc4 {[%clk 0:01:30]} 26. Qd1 {[%clk 0:01:54]}  Qc5 {[%clk 0:01:24]} 27. Rxc4 {[%clk 0:01:47]}  dxc4 {[%clk 0:01:22]} 28. Qd4 {[%clk 0:01:47]}  Rc8 {[%clk 0:01:02]} 29. Qxc5 {[%clk 0:01:24]}  Bxc5 {[%clk 0:01:03]} 30. Kf1 {[%clk 0:01:22]}  g5 {[%clk 0:00:54]} 31. Ke2 {[%clk 0:01:19]}  g4 {[%clk 0:00:53]} 32. Ne1 {[%clk 0:01:17]}  Kg7 {[%clk 0:00:49]} 33. Nc2 {[%clk 0:01:12]}  Rc7 {[%clk 0:00:44]} 34. Rb8 {[%clk 0:01:07]}  h5 {[%clk 0:00:36]} 35. Ra8 {[%clk 0:01:04]}  Ba7 {[%clk 0:00:35]} 36. Kd2 {[%clk 0:00:54]}  Kg6 {[%clk 0:00:24]} 37. Kc3 {[%clk 0:00:51]}  Kf5 {[%clk 0:00:22]} 38. Rh8 {[%clk 0:00:51]}  Kxe5 {[%clk 0:00:21]} 39. Rxh5+ {[%clk 0:00:51]}  Ke4 {[%clk 0:00:20]} 40. h3 {[%clk 0:00:29]}  gxh3 {[%clk 0:00:19]} 41. Rxh3 {[%clk 0:00:30]}  Kf3 {[%clk 0:00:19]} 42. Rh2 {[%clk 0:00:19]}  Bb6 {[%clk 0:00:20]} 43. Kb4 {[%clk 0:00:18]}  Ke2 {[%clk 0:00:08]} 44. f4+ {[%clk 0:00:16]}  Kd3 {[%clk 0:00:05]} 45. Kxa4 {[%clk 0:00:14]}  Bc5 {[%clk 0:00:05]} 46. Kb5 {[%clk 0:00:14]}  Be7 {[%clk 0:00:05]} 47. Ne1+ {[%clk 0:00:12]}  Kxe3 {[%clk 0:00:05]} 48. Rc2 {[%clk 0:00:11]}  c3 {[%clk 0:00:05]} 49. a4 {[%clk 0:00:12]}  Rb7+ {[%clk 0:00:02]} 50. Kc4 {[%clk 0:00:12]}  Rc7+ {[%clk 0:00:02]} 51. Kb3 {[%clk 0:00:13]}  Bf6 {[%clk 0:00:02]} 52. a5 {[%clk 0:00:11]}  Rb7+ {[%clk 0:00:02]} 53. Kc4 {[%clk 0:00:11]}  Rc7+ {[%clk 0:00:02]} 54. Kb5 {[%clk 0:00:11]}  Rb7+ {[%clk 0:00:03]} 55. Kc4 {[%clk 0:00:11]}  Rc7+ {[%clk 0:00:03]} 56. Kb5 {[%clk 0:00:10]}  Rb7+ {[%clk 0:00:04]} 57. Kc4 {[%clk 0:00:10]} 1/2-1/2


[Site "https://www.chess.com"]

[Event "Titled Tuesday Blitz August 09 Late 2022"]
[White "Pakleza, Zbigniew"]
[Black "Jeet, Jain"]
[WhiteFideId "1119290"]
[BlackFideId "5073022"]
[WhiteElo "2411"]
[BlackElo "2055"]
[Result "1-0"]
[Round "02"]
[TimeControl "180+1"]
[Date "2022.08.09"]
[WhiteClock "0:00:05"]
[BlackClock "0:00:14"]

1. d4 {[%clk 0:03:00]}  Nf6 {[%clk 0:02:57]} 2. Nf3 {[%clk 0:03:00]}  g6 {[%clk 0:02:57]} 3. Bf4 {[%clk 0:03:00]}  Bg7 {[%clk 0:02:57]} 4. e3 {[%clk 0:03:01]}  O-O {[%clk 0:02:57]} 5. Be2 {[%clk 0:03:01]}  b6 {[%clk 0:02:56]} 6. h3 {[%clk 0:03:01]}  Bb7 {[%clk 0:02:57]} 7. O-O {[%clk 0:03:02]}  d6 {[%clk 0:02:56]} 8. c3 {[%clk 0:02:59]}  Nbd7 {[%clk 0:02:56]} 9. a4 {[%clk 0:02:57]}  a6 {[%clk 0:02:54]} 10. Nbd2 {[%clk 0:02:53]}  Re8 {[%clk 0:02:50]} 11. Bh2 {[%clk 0:02:49]}  e5 {[%clk 0:02:50]} 12. Qb3 {[%clk 0:02:47]}  e4 {[%clk 0:02:47]} 13. Ne1 {[%clk 0:02:40]}  h5 {[%clk 0:02:47]} 14. Nc2 {[%clk 0:02:33]}  Nf8 {[%clk 0:02:45]} 15. a5 {[%clk 0:02:29]}  b5 {[%clk 0:02:45]} 16. c4 {[%clk 0:02:29]}  c6 {[%clk 0:02:43]} 17. d5 {[%clk 0:02:21]}  Rb8 {[%clk 0:02:38]} 18. dxc6 {[%clk 0:02:16]}  Bxc6 {[%clk 0:02:39]} 19. Nd4 {[%clk 0:02:16]}  Qd7 {[%clk 0:02:23]} 20. Nxc6 {[%clk 0:01:56]}  Qxc6 {[%clk 0:02:21]} 21. cxb5 {[%clk 0:01:56]}  axb5 {[%clk 0:02:21]} 22. Rfc1 {[%clk 0:01:46]}  Qa6 {[%clk 0:02:18]} 23. Qa3 {[%clk 0:01:26]}  Red8 {[%clk 0:02:10]} 24. Nb3 {[%clk 0:01:24]}  Ne6 {[%clk 0:02:07]} 25. Rd1 {[%clk 0:01:16]}  Bf8 {[%clk 0:02:05]} 26. Qa2 {[%clk 0:01:00]}  Rb7 {[%clk 0:02:02]} 27. Nd4 {[%clk 0:00:51]}  Nxd4 {[%clk 0:01:59]} 28. Rxd4 {[%clk 0:00:52]}  d5 {[%clk 0:01:54]} 29. Be5 {[%clk 0:00:50]}  Bg7 {[%clk 0:01:49]} 30. Rad1 {[%clk 0:00:42]}  Qe6 {[%clk 0:01:19]} 31. Bxf6 {[%clk 0:00:36]}  Bxf6 {[%clk 0:01:20]} 32. Rxd5 {[%clk 0:00:34]}  Rxd5 {[%clk 0:01:18]} 33. Qxd5 {[%clk 0:00:35]}  Qa6 {[%clk 0:01:07]} 34. b4 {[%clk 0:00:31]}  Rb8 {[%clk 0:00:56]} 35. Qxe4 {[%clk 0:00:30]}  Kg7 {[%clk 0:00:52]} 36. Rd5 {[%clk 0:00:29]}  Qc6 {[%clk 0:00:46]} 37. g3 {[%clk 0:00:24]}  h4 {[%clk 0:00:45]} 38. g4 {[%clk 0:00:24]}  Rd8 {[%clk 0:00:43]} 39. Bf3 {[%clk 0:00:24]}  Qc1+ {[%clk 0:00:41]} 40. Kg2 {[%clk 0:00:25]}  Rc8 {[%clk 0:00:41]} 41. g5 {[%clk 0:00:22]}  Bb2 {[%clk 0:00:39]} 42. Rxb5 {[%clk 0:00:20]}  Qe1 {[%clk 0:00:35]} 43. Rc5 {[%clk 0:00:19]}  Rd8 {[%clk 0:00:34]} 44. Rc2 {[%clk 0:00:16]}  Bc3 {[%clk 0:00:32]} 45. a6 {[%clk 0:00:14]}  Rb8 {[%clk 0:00:27]} 46. a7 {[%clk 0:00:12]}  Rxb4 {[%clk 0:00:27]} 47. Rxc3 {[%clk 0:00:12]}  Rb2 {[%clk 0:00:23]} 48. Qd4+ {[%clk 0:00:06]}  Kh7 {[%clk 0:00:22]} 49. e4 {[%clk 0:00:06]}  Rb1 {[%clk 0:00:21]} 50. Bd1 {[%clk 0:00:06]}  Ra1 {[%clk 0:00:18]} 51. Qd7 {[%clk 0:00:04]}  Qxe4+ {[%clk 0:00:15]} 52. Bf3 {[%clk 0:00:04]}  Qf4 {[%clk 0:00:13]} 53. a8=Q {[%clk 0:00:03]}  Qxg5+ {[%clk 0:00:13]} 54. Qg4 {[%clk 0:00:03]}  Qf6 {[%clk 0:00:11]} 55. Qxa1 {[%clk 0:00:03]}  Qxf3+ {[%clk 0:00:12]} 56. Qxf3 {[%clk 0:00:03]}  f5 {[%clk 0:00:13]} 57. Qf4 {[%clk 0:00:03]}  Kg7 {[%clk 0:00:13]} 58. Qe5+ {[%clk 0:00:04]}  Kf7 {[%clk 0:00:14]} 59. Rc7+ {[%clk 0:00:05]}  Kf8 {[%clk 0:00:14]} 60. Qa8# {[%clk 0:00:05]} 1-0


[Site "https://www.chess.com"]

[Event "Titled Tuesday Blitz August 09 Late 2022"]
[White "Popilski, Gil"]
[Black "Djordjevic, Vuk"]
[WhiteFideId "2809060"]
[BlackFideId "902098"]
[WhiteElo "2537"]
[BlackElo "2456"]
[Result "1/2-1/2"]
[Round "02"]
[TimeControl "180+1"]
[Date "2022.08.09"]
[WhiteClock "0:00:08"]
[BlackClock "0:00:09"]

1. d4 {[%clk 0:03:00]}  Nf6 {[%clk 0:03:00]} 2. c4 {[%clk 0:03:00]}  e6 {[%clk 0:03:00]} 3. Nf3 {[%clk 0:02:58]}  b6 {[%clk 0:03:00]} 4. a3 {[%clk 0:02:58]}  Bb7 {[%clk 0:03:01]} 5. Nc3 {[%clk 0:02:58]}  d5 {[%clk 0:03:01]} 6. Bg5 {[%clk 0:02:55]}  Be7 {[%clk 0:03:00]} 7. Qa4+ {[%clk 0:02:53]}  c6 {[%clk 0:02:55]} 8. cxd5 {[%clk 0:02:52]}  exd5 {[%clk 0:02:54]} 9. e3 {[%clk 0:02:39]}  O-O {[%clk 0:02:46]} 10. Bd3 {[%clk 0:02:39]}  h6 {[%clk 0:02:33]} 11. Bxf6 {[%clk 0:02:37]}  Bxf6 {[%clk 0:02:33]} 12. Rd1 {[%clk 0:02:38]}  Re8 {[%clk 0:02:06]} 13. O-O {[%clk 0:02:32]}  Nd7 {[%clk 0:02:05]} 14. Rfe1 {[%clk 0:02:30]}  Nf8 {[%clk 0:02:04]} 15. e4 {[%clk 0:02:24]}  dxe4 {[%clk 0:01:56]} 16. Bxe4 {[%clk 0:02:19]}  Qd6 {[%clk 0:01:46]} 17. Ne5 {[%clk 0:02:14]}  b5 {[%clk 0:00:52]} 18. Qb3 {[%clk 0:02:10]}  Ne6 {[%clk 0:00:51]} 19. Nxb5 {[%clk 0:02:04]}  cxb5 {[%clk 0:00:35]} 20. Bxb7 {[%clk 0:02:03]}  Rad8 {[%clk 0:00:32]} 21. Bf3 {[%clk 0:01:49]}  Qb6 {[%clk 0:00:23]} 22. Bd5 {[%clk 0:01:11]}  Rd6 {[%clk 0:00:13]} 23. Nf3 {[%clk 0:00:45]}  Kf8 {[%clk 0:00:07]} 24. Bxe6 {[%clk 0:00:41]}  Rdxe6 {[%clk 0:00:07]} 25. Rxe6 {[%clk 0:00:40]}  Rxe6 {[%clk 0:00:08]} 26. g3 {[%clk 0:00:40]}  Rd6 {[%clk 0:00:07]} 27. Qd3 {[%clk 0:00:38]}  g6 {[%clk 0:00:07]} 28. h4 {[%clk 0:00:37]}  Kg7 {[%clk 0:00:07]} 29. Qe4 {[%clk 0:00:36]}  h5 {[%clk 0:00:06]} 30. Qf4 {[%clk 0:00:36]}  Rd8 {[%clk 0:00:05]} 31. b4 {[%clk 0:00:35]}  a5 {[%clk 0:00:04]} 32. d5 {[%clk 0:00:32]}  axb4 {[%clk 0:00:04]} 33. axb4 {[%clk 0:00:33]}  Be7 {[%clk 0:00:04]} 34. Ne5 {[%clk 0:00:30]}  Bf6 {[%clk 0:00:04]} 35. Nc6 {[%clk 0:00:28]}  Rd7 {[%clk 0:00:05]} 36. Qe4 {[%clk 0:00:25]}  Qc7 {[%clk 0:00:04]} 37. Qd3 {[%clk 0:00:23]}  Qb6 {[%clk 0:00:04]} 38. Kg2 {[%clk 0:00:23]}  Rd6 {[%clk 0:00:04]} 39. Qe4 {[%clk 0:00:21]}  Rd7 {[%clk 0:00:04]} 40. Qf4 {[%clk 0:00:19]}  Bc3 {[%clk 0:00:02]} 41. Ne5 {[%clk 0:00:18]}  Bxe5 {[%clk 0:00:02]} 42. Qxe5+ {[%clk 0:00:18]}  Qf6 {[%clk 0:00:03]} 43. f4 {[%clk 0:00:18]}  Re7 {[%clk 0:00:02]} 44. Qd4 {[%clk 0:00:15]}  Qxd4 {[%clk 0:00:02]} 45. Rxd4 {[%clk 0:00:15]}  Re3 {[%clk 0:00:02]} 46. d6 {[%clk 0:00:15]}  Re8 {[%clk 0:00:02]} 47. Kf3 {[%clk 0:00:14]}  Kf6 {[%clk 0:00:03]} 48. f5 {[%clk 0:00:13]}  gxf5 {[%clk 0:00:02]} 49. Kf4 {[%clk 0:00:13]}  Ke6 {[%clk 0:00:02]} 50. d7 {[%clk 0:00:13]}  Rd8 {[%clk 0:00:02]} 51. Kg5 {[%clk 0:00:13]}  Ke5 {[%clk 0:00:03]} 52. Rd1 {[%clk 0:00:13]}  Ke6 {[%clk 0:00:03]} 53. Kxh5 {[%clk 0:00:13]}  Kf6 {[%clk 0:00:03]} 54. Rd6+ {[%clk 0:00:12]}  Ke7 {[%clk 0:00:03]} 55. Rd3 {[%clk 0:00:12]}  Kf6 {[%clk 0:00:04]} 56. Rd6+ {[%clk 0:00:12]}  Ke7 {[%clk 0:00:04]} 57. Rh6 {[%clk 0:00:09]}  Rxd7 {[%clk 0:00:04]} 58. Kg5 {[%clk 0:00:10]}  Rd4 {[%clk 0:00:04]} 59. Kxf5 {[%clk 0:00:08]}  Rxb4 {[%clk 0:00:05]} 60. Rb6 {[%clk 0:00:09]}  Rb1 {[%clk 0:00:05]} 61. Rb7+ {[%clk 0:00:10]}  Kf8 {[%clk 0:00:04]} 62. Kf6 {[%clk 0:00:11]}  Rf1+ {[%clk 0:00:05]} 63. Kg5 {[%clk 0:00:11]}  Rb1 {[%clk 0:00:04]} 64. h5 {[%clk 0:00:12]}  Re1 {[%clk 0:00:03]} 65. Rxb5 {[%clk 0:00:11]}  Kg7 {[%clk 0:00:03]} 66. g4 {[%clk 0:00:11]}  Rf1 {[%clk 0:00:03]} 67. Rb6 {[%clk 0:00:10]}  Rf2 {[%clk 0:00:03]} 68. h6+ {[%clk 0:00:10]}  Kg8 {[%clk 0:00:04]} 69. Rf6 {[%clk 0:00:09]}  Rb2 {[%clk 0:00:04]} 70. Kh5 {[%clk 0:00:09]}  Rb5+ {[%clk 0:00:04]} 71. g5 {[%clk 0:00:09]}  Rb1 {[%clk 0:00:05]} 72. Kg4 {[%clk 0:00:09]}  Rg1+ {[%clk 0:00:05]} 73. Kf5 {[%clk 0:00:09]}  Rf1+ {[%clk 0:00:06]} 74. Ke5 {[%clk 0:00:09]}  Re1+ {[%clk 0:00:06]} 75. Kd6 {[%clk 0:00:10]}  Rd1+ {[%clk 0:00:07]} 76. Ke7 {[%clk 0:00:09]}  Re1+ {[%clk 0:00:07]} 77. Kd7 {[%clk 0:00:09]}  Re5 {[%clk 0:00:08]} 78. h7+ {[%clk 0:00:07]}  Kxh7 {[%clk 0:00:08]} 79. Rxf7+ {[%clk 0:00:07]}  Kg6 {[%clk 0:00:08]} 80. Re7 {[%clk 0:00:07]}  Rxe7+ {[%clk 0:00:09]} 81. Kxe7 {[%clk 0:00:08]}  Kxg5 {[%clk 0:00:09]} 1/2-1/2


[Site "https://www.chess.com"]

[Event "Titled Tuesday Blitz August 09 Late 2022"]
[White "Rastbod, Ali"]
[Black "Grischuk, Alexander"]
[WhiteFideId "12567477"]
[BlackFideId "4126025"]
[WhiteElo "2191"]
[BlackElo "2762"]
[Result "1/2-1/2"]
[Round "02"]
[TimeControl "180+1"]
[Date "2022.08.09"]
[WhiteClock "0:00:05"]
[BlackClock "0:00:10"]

1. c4 {[%clk 0:01:08]}  e5 {[%clk 0:02:59]} 2. Nc3 {[%clk 0:01:08]}  d6 {[%clk 0:02:59]} 3. d4 {[%clk 0:01:08]}  exd4 {[%clk 0:03:00]} 4. Qxd4 {[%clk 0:01:09]}  Nf6 {[%clk 0:03:00]} 5. Qd2 {[%clk 0:01:10]}  g6 {[%clk 0:02:56]} 6. g3 {[%clk 0:01:10]}  Bg7 {[%clk 0:02:56]} 7. Bg2 {[%clk 0:01:11]}  O-O {[%clk 0:02:55]} 8. Nh3 {[%clk 0:01:11]}  a5 {[%clk 0:02:54]} 9. O-O {[%clk 0:01:08]}  a4 {[%clk 0:02:53]} 10. Nf4 {[%clk 0:01:07]}  Re8 {[%clk 0:02:50]} 11. Qc2 {[%clk 0:01:06]}  a3 {[%clk 0:02:39]} 12. bxa3 {[%clk 0:01:05]}  Bf5 {[%clk 0:02:20]} 13. Qb3 {[%clk 0:01:04]}  Ne4 {[%clk 0:02:20]} 14. Bxe4 {[%clk 0:01:00]}  Bxe4 {[%clk 0:02:19]} 15. Bb2 {[%clk 0:01:01]}  Bc6 {[%clk 0:01:51]} 16. Ncd5 {[%clk 0:01:00]}  Nd7 {[%clk 0:01:52]} 17. Bxg7 {[%clk 0:01:00]}  Kxg7 {[%clk 0:01:53]} 18. Qb2+ {[%clk 0:01:00]}  f6 {[%clk 0:01:51]} 19. Rfe1 {[%clk 0:00:59]}  Nc5 {[%clk 0:01:49]} 20. f3 {[%clk 0:00:58]}  Ra4 {[%clk 0:01:43]} 21. Nb4 {[%clk 0:00:55]}  Qd7 {[%clk 0:01:27]} 22. Nfd5 {[%clk 0:00:48]}  Qf7 {[%clk 0:01:27]} 23. e4 {[%clk 0:00:48]}  Bxd5 {[%clk 0:01:24]} 24. exd5 {[%clk 0:00:27]}  Raa8 {[%clk 0:01:23]} 25. Qc3 {[%clk 0:00:22]}  Qd7 {[%clk 0:01:14]} 26. Nd3 {[%clk 0:00:22]}  Nxd3 {[%clk 0:00:50]} 27. Qxd3 {[%clk 0:00:23]}  Kf7 {[%clk 0:00:50]} 28. Kf2 {[%clk 0:00:20]}  Qa4 {[%clk 0:00:50]} 29. Rxe8 {[%clk 0:00:19]}  Rxe8 {[%clk 0:00:48]} 30. Re1 {[%clk 0:00:20]}  Qa7+ {[%clk 0:00:48]} 31. Re3 {[%clk 0:00:15]}  Qb6 {[%clk 0:00:48]} 32. f4 {[%clk 0:00:14]}  Qb2+ {[%clk 0:00:27]} 33. Re2 {[%clk 0:00:11]}  Qb6+ {[%clk 0:00:19]} 34. Kf3 {[%clk 0:00:10]}  Qg1 {[%clk 0:00:14]} 35. Rxe8 {[%clk 0:00:09]}  Kxe8 {[%clk 0:00:15]} 36. Qe3+ {[%clk 0:00:08]}  Qxe3+ {[%clk 0:00:15]} 37. Kxe3 {[%clk 0:00:09]}  Kd7 {[%clk 0:00:14]} 38. Kd4 {[%clk 0:00:10]}  c5+ {[%clk 0:00:13]} 39. Kc3 {[%clk 0:00:06]}  Kc7 {[%clk 0:00:13]} 40. Kb3 {[%clk 0:00:04]}  Kb6 {[%clk 0:00:14]} 41. g4 {[%clk 0:00:03]}  Ka5 {[%clk 0:00:12]} 42. a4 {[%clk 0:00:03]}  g5 {[%clk 0:00:08]} 43. f5 {[%clk 0:00:03]}  Ka6 {[%clk 0:00:08]} 44. h3 {[%clk 0:00:03]}  Ka5 {[%clk 0:00:08]} 45. Ka3 {[%clk 0:00:04]}  Ka6 {[%clk 0:00:09]} 46. Kb3 {[%clk 0:00:04]}  Ka5 {[%clk 0:00:09]} 47. Ka3 {[%clk 0:00:05]}  Ka6 {[%clk 0:00:10]} 48. Kb3 {[%clk 0:00:05]} 1/2-1/2


[Site "https://www.chess.com"]

[Event "Titled Tuesday Blitz August 09 Late 2022"]
[White "Rasulov, Vugar"]
[Black "Barria Zuniga, Daniel"]
[WhiteFideId "13402390"]
[BlackFideId "3400816"]
[WhiteElo "2509"]
[BlackElo "2414"]
[Result "1-0"]
[Round "02"]
[TimeControl "180+1"]
[Date "2022.08.09"]
[WhiteClock "0:00:53"]
[BlackClock "0:00:01"]

1. e4 {[%clk 0:03:00]}  c5 {[%clk 0:02:57]} 2. Nf3 {[%clk 0:03:01]}  e6 {[%clk 0:02:57]} 3. d4 {[%clk 0:03:00]}  cxd4 {[%clk 0:02:58]} 4. Nxd4 {[%clk 0:03:00]}  a6 {[%clk 0:02:58]} 5. Nc3 {[%clk 0:03:01]}  Qc7 {[%clk 0:02:57]} 6. g3 {[%clk 0:03:00]}  Bb4 {[%clk 0:02:56]} 7. Bd2 {[%clk 0:03:00]}  Nc6 {[%clk 0:02:55]} 8. Nb3 {[%clk 0:02:59]}  Nf6 {[%clk 0:02:51]} 9. Bg2 {[%clk 0:02:59]}  O-O {[%clk 0:02:50]} 10. O-O {[%clk 0:03:00]}  Be7 {[%clk 0:02:46]} 11. f4 {[%clk 0:02:59]}  b5 {[%clk 0:02:47]} 12. e5 {[%clk 0:02:56]}  Ne8 {[%clk 0:02:46]} 13. Be3 {[%clk 0:02:54]}  d6 {[%clk 0:02:45]} 14. Qh5 {[%clk 0:02:37]}  Bb7 {[%clk 0:02:08]} 15. Rad1 {[%clk 0:02:27]}  Rb8 {[%clk 0:01:15]} 16. exd6 {[%clk 0:02:16]}  Nxd6 {[%clk 0:01:14]} 17. Nc5 {[%clk 0:02:11]}  Nf5 {[%clk 0:01:08]} 18. Bf2 {[%clk 0:02:08]}  Bc8 {[%clk 0:00:54]} 19. N3e4 {[%clk 0:02:06]}  Nb4 {[%clk 0:00:43]} 20. g4 {[%clk 0:01:55]}  Nd6 {[%clk 0:00:37]} 21. f5 {[%clk 0:01:37]}  exf5 {[%clk 0:00:28]} 22. gxf5 {[%clk 0:01:37]}  Nxf5 {[%clk 0:00:22]} 23. c3 {[%clk 0:01:37]}  Nc6 {[%clk 0:00:19]} 24. Ng5 {[%clk 0:01:34]}  h6 {[%clk 0:00:14]} 25. Nxf7 {[%clk 0:01:33]}  Rxf7 {[%clk 0:00:14]} 26. Bd5 {[%clk 0:01:32]}  Bxc5 {[%clk 0:00:13]} 27. Bxc5 {[%clk 0:01:33]}  Ne5 {[%clk 0:00:12]} 28. b4 {[%clk 0:01:24]}  Rb6 {[%clk 0:00:12]} 29. Rxf5 {[%clk 0:01:21]}  Bxf5 {[%clk 0:00:06]} 30. Qxf5 {[%clk 0:01:22]}  Rf6 {[%clk 0:00:04]} 31. Qh5 {[%clk 0:01:11]}  Nf3+ {[%clk 0:00:02]} 32. Kh1 {[%clk 0:01:09]}  Qf4 {[%clk 0:00:02]} 33. Rf1 {[%clk 0:01:03]}  Rf5 {[%clk 0:00:01]} 34. Bxf7+ {[%clk 0:00:53]} 1-0


[Site "https://www.chess.com"]

[Event "Titled Tuesday Blitz August 09 Late 2022"]
[White "Taichman, Ori"]
[Black "Salem, A.R. Saleh"]
[WhiteFideId "2804069"]
[BlackFideId "9301348"]
[WhiteElo "2227"]
[BlackElo "2674"]
[Result "0-1"]
[Round "02"]
[TimeControl "180+1"]
[Date "2022.08.09"]
[WhiteClock "0:00:01"]
[BlackClock "0:00:09"]

1. e4 {[%clk 0:02:56]}  c5 {[%clk 0:03:00]} 2. b3 {[%clk 0:02:56]}  Nc6 {[%clk 0:02:59]} 3. Bb2 {[%clk 0:02:54]}  e5 {[%clk 0:02:59]} 4. Bb5 {[%clk 0:02:50]}  d6 {[%clk 0:02:59]} 5. f4 {[%clk 0:02:50]}  exf4 {[%clk 0:02:58]} 6. Nf3 {[%clk 0:02:50]}  Nf6 {[%clk 0:02:54]} 7. O-O {[%clk 0:02:49]}  Be7 {[%clk 0:02:54]} 8. e5 {[%clk 0:02:46]}  Nd5 {[%clk 0:02:28]} 9. Bxc6+ {[%clk 0:02:17]}  bxc6 {[%clk 0:02:24]} 10. exd6 {[%clk 0:02:18]}  Qxd6 {[%clk 0:02:24]} 11. Bxg7 {[%clk 0:02:16]}  Rg8 {[%clk 0:02:24]} 12. Be5 {[%clk 0:02:16]}  Qg6 {[%clk 0:02:21]} 13. Rf2 {[%clk 0:02:09]}  Bh3 {[%clk 0:02:12]} 14. Qf1 {[%clk 0:02:04]}  f6 {[%clk 0:01:56]} 15. Bb2 {[%clk 0:01:55]}  Qxc2 {[%clk 0:01:52]} 16. d3 {[%clk 0:01:53]}  Bxg2 {[%clk 0:01:29]} 17. Rxg2 {[%clk 0:01:35]}  O-O-O {[%clk 0:01:04]} 18. Kh1 {[%clk 0:01:18]}  Rxg2 {[%clk 0:01:01]} 19. Qxg2 {[%clk 0:01:19]}  Ne3 {[%clk 0:00:45]} 20. Ne1 {[%clk 0:01:00]}  Qxg2+ {[%clk 0:00:17]} 21. Nxg2 {[%clk 0:01:00]}  Nc2 {[%clk 0:00:18]} 22. Nxf4 {[%clk 0:01:00]}  Bd6 {[%clk 0:00:13]} 23. Ne2 {[%clk 0:00:42]}  Be5 {[%clk 0:00:13]} 24. Nbc3 {[%clk 0:00:41]}  Nxa1 {[%clk 0:00:12]} 25. Bxa1 {[%clk 0:00:42]}  Rxd3 {[%clk 0:00:13]} 26. Kg2 {[%clk 0:00:41]}  Rd2 {[%clk 0:00:13]} 27. Kf3 {[%clk 0:00:40]}  Bxh2 {[%clk 0:00:12]} 28. Ke3 {[%clk 0:00:35]}  Rd8 {[%clk 0:00:12]} 29. Ne4 {[%clk 0:00:35]}  Be5 {[%clk 0:00:10]} 30. Bxe5 {[%clk 0:00:33]}  fxe5 {[%clk 0:00:10]} 31. Nxc5 {[%clk 0:00:29]}  h5 {[%clk 0:00:11]} 32. Ne6 {[%clk 0:00:28]}  Rg8 {[%clk 0:00:10]} 33. Kf2 {[%clk 0:00:12]}  h4 {[%clk 0:00:10]} 34. Ng1 {[%clk 0:00:12]}  e4 {[%clk 0:00:10]} 35. Nf4 {[%clk 0:00:11]}  e3+ {[%clk 0:00:11]} 36. Kf1 {[%clk 0:00:11]}  Rf8 {[%clk 0:00:11]} 37. Nh3 {[%clk 0:00:11]}  Rd8 {[%clk 0:00:08]} 38. Ke2 {[%clk 0:00:12]}  Rd2+ {[%clk 0:00:09]} 39. Kxe3 {[%clk 0:00:12]}  Rxa2 {[%clk 0:00:10]} 40. Ng5 {[%clk 0:00:11]}  Ra3 {[%clk 0:00:09]} 41. Ke4 {[%clk 0:00:10]}  Rxb3 {[%clk 0:00:09]} 42. Nf3 {[%clk 0:00:11]}  Rb4+ {[%clk 0:00:08]} 43. Ke3 {[%clk 0:00:11]}  Rb3+ {[%clk 0:00:09]} 44. Ke4 {[%clk 0:00:12]}  a5 {[%clk 0:00:09]} 45. Nxh4 {[%clk 0:00:10]}  a4 {[%clk 0:00:10]} 46. Nf5 {[%clk 0:00:09]}  a3 {[%clk 0:00:10]} 47. Nd4 {[%clk 0:00:10]}  Rb1 {[%clk 0:00:10]} 48. Nc2 {[%clk 0:00:02]}  a2 {[%clk 0:00:10]} 49. Ne2 {[%clk 0:00:03]}  Rb2 {[%clk 0:00:10]} 50. Ned4 {[%clk 0:00:03]}  c5 {[%clk 0:00:09]} 51. Kd3 {[%clk 0:00:01]}  cxd4 {[%clk 0:00:09]} 0-1


[Site "https://www.chess.com"]